Cogmind - Beta 17 @@@ ROGUE MODE // 2026.06.27 @ 22:09:22 Player: Ceorik Result: Self-destructed Performance ------------- Evolutions (3) 1500 Regions Visited (6) 1200 Robots Destroyed (105) 525 Value Destroyed (3928) 3928 Prototype IDs (21) 420 Alien Tech Used (0) 0 Bonus (7904) 7904 TOTAL SCORE: 15477 Bonus ------- High Alert Combat Kills 393 Follower Combat Kills 161 Prayed to X0-1V1 5000 Major X0-1V1 Interference 1950 Entered Garrisons 400 Cogmind --------- Core Integrity 378/650 Matter 928/1000 Energy 300/300 System Corruption 28% Temperature Cool (0) Movement Hovering (480) Ox7 Location -7/Garrison Parts ------- > --- POWER (1) -------- Angular Momentum Engine > --- PROPULSION (4) --- Gravmag System > --- UTILITY (5) ------ High-capacity Storage Unit Weapon Cycler Layered Medium Armor Plating X0-1V1's Piety Tracker > --- WEAPON (3) ------- Gatling Laser Great Axe > --- INVENTORY (20) --- Improved Deuterium Engine Light Treads Coolant Injector High-capacity Matter Pod (200) Improved Sensor Array Energy Filter Weapon Cycler Improved Hacking Suite High-powered Tractor Beam Improved Trap Extractor (0/6) Heavy Ion Cannon Proton Missile Launcher Proton Missile Launcher Missile Launcher Peak State ------------ > --- POWER ------------ Angular Momentum Engine > --- PROPULSION ------- Medium Treads Gravmag System Gravmag System Gravmag System > --- UTILITY ---------- Advanced Heat Sink High-capacity Storage Unit Weapon Cycler Hardened Medium Armor Plating X0-1V1's Piety Tracker > --- WEAPON ----------- Gatling Laser Gauss Rifle Great Axe > --- INVENTORY -------- Improved Deuterium Engine Light Treads Coolant Injector High-capacity Matter Pod Improved Sensor Array Energy Filter Weapon Cycler Layered Medium Armor Plating Improved Hacking Suite High-powered Tractor Beam Improved Trap Extractor Heavy Ion Cannon Proton Missile Launcher Proton Missile Launcher Missile Launcher [Rating: 64] Favorites ----------- Power Angular Momentum Engine Engine Angular Momentum Engine Propulsion Light Treads Treads Light Treads Leg Aluminum Leg Wheel Wheel Hover Unit Gravmag System Utility High-capacity Storage Unit Device X0-1V1's Piety Tracker Storage High-capacity Storage Unit Processor Improved Signal Interpreter Hackware Hacking Suite Protection Layered Medium Armor Plating Weapon Gatling Laser Energy Gun Gatling Laser Ballistic Gun High-powered Shotgun Ballistic Cannon Light Cannon Launcher Grenade Launcher Special Weapon Mining Laser Impact Weapon Heavy Hammer Slashing Weapon Great Axe Build | -11 -10 -10 -8 -8 -7 -7 ------- Run | Yrd Mat Sub Mat Gar Fac Gar Slots Evolved 6 | . . . 4 . 2 . Power . | . . . . . . . Propulsion 2 | . . . 1 . 1 . Utility 3 | . . . 3 . . . Weapon 1 | . . . . . 1 . Parts Attached 66 | 2 7 5 17 19 10 6 Power 7 | . . . 3 4 . . Engine 7 | . . . 3 4 . . Core . | . . . . . . . Reactor . | . . . . . . . Propulsion 25 | 2 1 2 6 6 5 3 Treads 17 | 1 . 1 4 6 5 . Leg . | . . . . . . . Wheel 5 | 1 1 1 2 . . . Hover 3 | . . . . . . 3 Flight . | . . . . . . . Utility 20 | . 3 1 5 6 3 2 Device 6 | . 1 1 1 2 1 . Storage 3 | . 1 . 1 1 . . Processor 1 | . . . 1 . . . Hackware 1 | . . . 1 . . . Protection 9 | . 1 . 1 3 2 2 Artifact . | . . . . . . . Weapon 14 | . 3 2 3 3 2 1 Energy Gun 3 | . . . . 2 1 . Energy Cannon . | . . . . . . . Ballistic Gun 2 | . . . 1 . . 1 Ballistic Cannon 3 | . 2 . 1 . . . Launcher 4 | . 1 1 1 1 . . Special Weapon 1 | . . 1 . . . . Impact Weapon . | . . . . . . . Slashing Weapon 1 | . . . . . 1 . Piercing Weapon . | . . . . . . . Special Melee Weapon . | . . . . . . . Unidentified Prototypes 2 | . 1 . . . 1 . Parts Lost 27 | . . . 5 10 2 10 Power 3 | . . . 1 2 . . Propulsion 13 | . . . 3 4 2 4 Utility 6 | . . . . 2 . 4 Weapon 5 | . . . 1 2 . 2 Highest Loss Streak 8 | . . . 3 8 1 6 To Critical Strikes . | . . . . . . . Average Backups 18 | 6 11 19 19 19 19 18 Power 1 | 1 2 3 2 1 1 1 Propulsion 3 | 4 4 6 6 2 1 2 Utility 7 | . 1 3 4 9 11 10 Weapon 5 | 1 3 6 6 5 5 4 Tool/Special . | . . . . . . . Unused Backups 38 | . 7 1 1 13 5 11 Power 7 | . 1 . 1 3 1 1 Propulsion 7 | . 2 . . 4 1 . Utility 14 | . 1 1 . 3 2 7 Weapon 10 | . 3 . . 3 1 3 Tool/Special . | . . . . . . . Average Slot Usage (%) 97 | . 96 100 95 98 98 91 Engine 9 | . 14 14 9 8 7 7 Treads 21 | . 14 14 20 26 28 15 Wheel 4 | . 14 14 5 . . . Device 14 | . . 14 14 14 22 22 Storage 9 | . 14 14 9 9 7 7 Processor 3 | . . . 7 9 . . Hackware 2 | . . . 8 3 . . Protection 6 | . 10 . 2 8 7 6 Energy Gun 9 | . 3 . . 11 22 11 Ballistic Gun 2 | . 6 . 5 . . 2 Ballistic Cannon 6 | . 17 18 4 4 . . Special Weapon 1 | . . 8 4 . . . Peak Build Rating 64 | 6 21 21 36 50 63 64 Average Rating 37 | 5 7 20 31 43 57 58 On Entrance 28 | 6 6 21 21 36 50 58 Avg Prop Armor Cover (%) 12 | . 11 10 15 . 5 7 Naked Turns . | . . . . . . . Heaviest Build 77 | 11 50 50 57 74 77 77 Greatest Support 98 | 16 16 10 60 62 98 76 Greatest Overweight (x) 5 | . 4 4 5 1 1 4 Average Overweight (x) 1 | . 1 4 2 . . 1 Largest Inventory Capacity 20 | 8 20 20 20 20 20 20 Average Capacity 19 | 8 14 20 20 20 20 20 Most Carried 20 | 6 20 20 20 20 20 20 Average Carried 18 | 5 11 19 19 19 19 18 Final Capacity 20 | 8 20 20 20 20 20 20 Final Carried 20 | 4 20 20 20 20 20 14 Class Distribution -------------------- 61% | Mutant 22% | Tank 16% | Scavenger-Mutant Dominant Class ---------------- Mutant | -10/Materials Mutant | -10/Subcaves Scavenger-Mutant | -8/Materials Mutant | -8/Garrison Tank | -7/Factory Mutant | -7/Garrison Resources | -11 -10 -10 -8 -8 -7 -7 ----------- Run | Yrd Mat Sub Mat Gar Fac Gar Matter Collected 3475 | 200 265 147 582 1023 1023 235 Remotely . | . . . . . . . Salvage Created 2995 | . 276 92 499 1101 657 370 Parts 145 | . 22 9 22 55 20 17 Haulers Intercepted 3 | . 2 . 1 . . . Recyclers Shooed 3 | . 1 . 1 . 1 . Parts Field Recycled . | . . . . . . . Retrieved Matter . | . . . . . . . Parts Self-Destructed 10 | . . 10 . . . . Prevented . | . . . . . . . Parts Restored . | . . . . . . . Kills | -11 -10 -10 -8 -8 -7 -7 ------- Run | Yrd Mat Sub Mat Gar Fac Gar Combat Hostiles Destroyed 87 | . 5 9 13 30 12 18 Guns 37 | . . . 5 13 9 10 Cannons 16 | . 2 2 1 11 . . AOE 28 | . 3 7 7 4 . 7 Classes Destroyed 18 | . 6 1 5 5 1 . Worker 8 | . 4 . 3 . 1 . Tunneler 1 | . . . . . 1 . Hauler 3 | . 2 . 1 . . . Recycler 3 | . . . 2 . 1 . Operator 1 | . 1 . . . . . Drone 1 | . . . 1 . . . Watcher 2 | . 1 . . . 1 . Swarmer 28 | . 3 7 3 3 . 12 Grunt 22 | . 2 . 4 9 4 3 Brawler 1 | . . . . 1 . . Duelist 1 | . . . 1 . . . Protector 1 | . . . 1 . . . Sentry 16 | . . . 3 10 3 . Specialist 2 | . . . . 2 . . Hunter 3 | . . . . 1 2 . Programmer 9 | . . . . 3 3 3 Behemoth 1 | . . . . 1 . . Subdweller 2 | . . 2 . . . . Savage 1 | . . . . . 1 . Best Kill Streak 7 | . 3 4 7 4 5 7 Combat Bots Only 7 | . 3 4 6 4 3 7 Max Kills in Single Turn 3 | . 2 2 3 3 2 2 Gunslinging 1 | . . . . . 1 1 Exploded 3 | . 2 2 2 3 . 2 Melee . | . . . . . . . Uniques/NPCs Destroyed . | . . . . . . . Combat | -11 -10 -10 -8 -8 -7 -7 -------- Run | Yrd Mat Sub Mat Gar Fac Gar Hostile Shots Fired 536 | . 15 51 93 158 66 153 Missed 177 | . 8 26 26 44 26 47 Hits 359 | . 7 25 67 114 40 106 Melee 29 | . . . 28 1 . . Projectile 330 | . 7 25 39 113 40 106 Critical Strikes 14 | . . . . 8 1 5 Part Disruptions 1 | . . . . . 1 . Damage Taken 5334 | . 113 182 889 1987 446 1717 Core 740 | . 28 18 153 269 31 241 Absorbed by Shields . | . . . . . . . Redirected to Shielding 14 | . 14 . . . . . Ignored by Resistances 9 | . . . . 9 . . Core Remaining (%) 85 | 100 . 81 . 75 . . Volleys Fired 230 | . 27 19 58 72 21 33 Largest 3 | . 2 2 1 2 3 2 Hottest 240 | . 60 100 100 160 240 160 Shots Fired 351 | . 45 28 59 99 63 57 Gun 195 | . 2 . 23 56 63 51 Cannon 114 | . 39 17 19 39 . . Launcher 30 | . 4 6 10 4 . 6 Special 12 | . . 5 7 . . . Kinetic 145 | . 40 17 42 39 . 7 Thermal 176 | . 1 5 7 56 63 44 Explosive 30 | . 4 6 10 4 . 6 Electromagnetic . | . . . . . . . Robot Hit Streak 22 | . 6 16 6 12 21 22 Robot Miss Streak 7 | . 3 . 3 7 3 4 Penetration Max . | . . . . . . . Secondary Targets 5 | . . . . . 2 3 Max Gunslinging Chain 1 | . . . . . 1 1 Shots Hit Robots 256 | . 22 10 29 95 54 46 Core Hits 234 | . 15 12 42 88 43 34 Critical Kills . | . . . . . . . Critical Parts Destroyed 2 | . . . . 2 . . Critical Strikes 5 | . 1 1 . 2 . 1 Blast 2 | . 1 1 . . . . Smash 2 | . . . . 2 . . Sever 1 | . . . . . . 1 Melee Attacks 23 | . . . . 9 . 14 Impact 9 | . . . . 9 . . Slashing 14 | . . . . . . 14 Piercing . | . . . . . . . Sneak Attacks . | . . . . . . . Combat Hostiles . | . . . . . . . Follow-up Attacks . | . . . . . . . Damage Inflicted 8240 | . 626 505 1211 2313 1461 2124 Guns 3990 | . 11 . 316 1116 1461 1086 Cannons 1369 | . 346 157 162 704 . . Explosions 2502 | . 269 348 709 291 . 885 Melee 355 | . . . . 202 . 153 Ramming . | . . . . . . . Kinetic 1725 | . 346 157 478 704 . 40 Thermal 3658 | . 11 . 24 1116 1461 1046 Explosive 2502 | . 269 348 709 291 . 885 Electromagnetic . | . . . . . . . Impact 202 | . . . . 202 . . Slashing 153 | . . . . . . 153 Piercing . | . . . . . . . Highest Corruption 28 | . 1 19 . 17 1 28 Average Corruption 13 | . 1 14 . 16 1 23 Corruption Purged . | . . . . . . . Corruption Blocked . | . . . . . . . Effects 81 | . 3 22 . 32 . 24 Message Errors 21 | . 1 8 . 6 . 6 Matter Fused 20 | . . 5 . 9 . 6 Heat Flow Errors 11 | . 1 3 . 7 . . Energy Discharges 5 | . . 1 . 2 . 2 Data Loss (minor) 8 | . . 2 . 4 . 2 Data Loss (major) 4 | . 1 1 . 1 . 1 Misfires 4 | . . 2 . 1 . 1 Alerts 2 | . . . . 1 . 1 Weapon Failures 6 | . . . . 1 . 5 Overload Shots . | . . . . . . . Overflow Damage 110 | . 11 22 22 30 . 25 Projectiles 16 | . . . 16 . . . Explosions 61 | . 11 22 6 . . 22 Melee 33 | . . . . 30 . 3 Knockbacks 16 | . 2 1 6 7 . . Impact . | . . . . . . . Kinetic 15 | . 2 1 6 6 . . Secondary 1 | . . . . 1 . . Self-Inflicted Damage 224 | . 30 . 149 45 . . Shots 8 | . 1 . 5 2 . . Rammed . | . . . . . . . Targets Rammed . | . . . . . . . Kicked . | . . . . . . . Crushed . | . . . . . . . Highest Temperature 388 | . 209 254 16 346 388 200 Average Temperature 89 | . 57 105 8 61 147 67 Received Heat Transfer 1155 | . 42 78 171 489 105 270 Effects 1 | . . . . . 1 . Matter Decay 1 | . . . . . 1 . Siege Activations . | . . . . . . . Martial Activations . | . . . . . . . Shielding Activations . | . . . . . . . Robots Disrupted . | . . . . . . . Combat Hostiles . | . . . . . . . Robots Corrupted 1 | . . . . 1 . . Combat Hostiles 1 | . . . . 1 . . Parts Fried 1 | . . . . 1 . . Impact Corruptions 2 | . . . . 2 . . Robots Melted 8 | . . . . 1 6 1 Combat Hostiles 5 | . . . . 1 3 1 Parts Melted 22 | . . . . 8 9 5 Heat Transferred 7775 | . 25 . 50 2400 3175 2125 Parts Sabotaged . | . . . . . . . Parts Stolen 2 | . . . 2 . . . Parts Stripped . | . . . . . . . Power Chain Reactions 1 | . . . 1 . . . Alert | -11 -10 -10 -8 -8 -7 -7 ------- Run | Yrd Mat Sub Mat Gar Fac Gar Maximum Alert Level 3 | . . . 1 3 2 3 Low Security (%) 36 | 100 100 . 54 7 22 . Level 1 33 | . . . 45 32 58 7 Level 2 24 | . . . . 42 18 82 Level 3 6 | . . . . 18 . 9 Level 4 . | . . . . . . . Level 5 . | . . . . . . . High Security . | . . . . . . . Max Security . | . . . . . . . Peak Influence 907 | . 78 . 324 907 671 758 Initial 476 | . . . 75 169 476 373 Average 310 | . 13 . 187 496 311 565 Influence Increases 3279 | . 211 240 628 918 837 445 Destroy 0b10 Robot/C 1800 | . 100 140 240 620 340 360 Destroy 0b10 Robot/NC 95 | . 40 . 35 . 20 . Destroy Leader 160 | . 26 10 42 20 62 . Allied During Kill 31 | . . . . 8 23 . Successful Hack 140 | . 27 . 12 16 85 . Disable Machine 90 | . . . 60 15 15 . Anti-Garrison Action 250 | . . . . 200 . 50 Destroy Structure 133 | . 18 . 54 24 2 35 Lose Combat Pursuer 120 | . . 90 15 15 . . Miscellaneous 460 | . . . 170 . 290 . Influence Decreases 2561 | . 211 94 513 272 1211 260 Entered New Map 754 | . . . 71 92 431 160 Time Decay 1187 | . 211 94 392 . 490 . Search Patrol Dispatched 100 | . . . . . 100 . Lost Part 270 | . . . 50 100 20 100 Lost Ally 100 | . . . . 80 20 . Purge Threat 150 | . . . . . 150 . Squads Dispatched 5 | . 1 . 1 . 3 . Investigation 1 | . . . . . 1 . Extermination 2 | . . . . . 2 . Reinforcement 1 | . 1 . . . . . Assault 1 | . . . 1 . . . Garrison . | . . . . . . . Intercept . | . . . . . . . Searches Triggered 1 | . . . . . 1 . Construction Impeded . | . . . . . . . Haulers Reinforced . | . . . . . . . Active Scanning Responses . | . . . . . . . Cargo Convoy Interrupts . | . . . . . . . Stealth | -11 -10 -10 -8 -8 -7 -7 --------- Run | Yrd Mat Sub Mat Gar Fac Gar Distress Signals 3 | . 1 . 2 . . . Communications Jammed . | . . . . . . . Distress Signals . | . . . . . . . Times Spotted 122 | . 14 12 22 35 16 23 Peak Tracking Total 10 | . 3 6 6 5 2 10 Tactical Retreats 4 | . . 2 1 1 . . Traps | -11 -10 -10 -8 -8 -7 -7 ------- Run | Yrd Mat Sub Mat Gar Fac Gar Traps Triggered 9 | . 1 . . 6 . 2 Indirectly . | . . . . . . . Trap Hack Attempts . | . . . . . . . Triggered . | . . . . . . . Disarmed . | . . . . . . . Reprogrammed . | . . . . . . . Reused . | . . . . . . . Traps Extracted . | . . . . . . . Installed 1 | . . 1 . . . . Triggered . | . . . . . . . Machines | -11 -10 -10 -8 -8 -7 -7 ---------- Run | Yrd Mat Sub Mat Gar Fac Gar Machines Disabled 10 | . . 1 4 2 1 2 Max in Single Turn 1 | . . 1 1 1 . 1 Garrison Relay 2 | . . . . 1 . 1 Phase Generator 1 | . . . . 1 . . Machines Repaired . | . . . . . . . Machines Dismantled . | . . . . . . . Machines Sabotaged . | . . . . . . . Overloaded Fab Kills . | . . . . . . . Hacking | -11 -10 -10 -8 -8 -7 -7 --------- Run | Yrd Mat Sub Mat Gar Fac Gar Machines Accessed 25 | . 7 2 4 3 7 2 Terminals 19 | . 7 . 3 3 4 2 Fabricators 1 | . . . . . 1 . Repair Stations . | . . . . . . . Recycling Units . | . . . . . . . Scanalyzers 1 | . . . . . 1 . Garrison Access 2 | . . . 1 . 1 . Total Hacks 66 | . 23 6 10 4 21 2 Successful 45 | . 15 6 8 1 14 1 Failed 19 | . 7 . 2 3 6 1 Catastrophic 4 | . . . 1 . 3 . Database Lockouts 2 | . 1 . . . 1 . Manual 28 | . 16 . 5 . 7 . Terminals 51 | . 23 . 9 4 13 2 Fabricators 2 | . . . . . 2 . Repair Stations . | . . . . . . . Recycling Units . | . . . . . . . Scanalyzers 5 | . . . . . 5 . Garrison Access 2 | . . . 1 . 1 . Terminal Hacks 23 | . 8 6 4 1 3 1 Record 5 | . . 5 . . . . Robot Analysis 1 | . 1 . . . . . Prototype ID Bank 3 | . 3 . . . . . Level Access Points 1 | . . . . . 1 . Branch Access Points 1 | . . . 1 . . . Emergency Access Points 1 | . . . . . . 1 Terminal Index 1 | . 1 . . . . . Alert Level 1 | . . . . . 1 . Unreport Threat 1 | . . . . . 1 . Locate Traps 4 | . 3 . 1 . . . Registered Components 1 | . . . 1 . . . Zone Layout 1 | . . . 1 . . . Patrol Navigation 1 | . . . . 1 . . Proto ID Catalog 1 | . . 1 . . . . Fabricator Hacks 1 | . . . . . 1 . Network Status 1 | . . . . . 1 . Repair Station Hacks . | . . . . . . . Recycling Unit Hacks . | . . . . . . . Scanalyzer 4 | . . . . . 4 . Retrieve Study 4 | . . . . . 4 . Garrison Access Hacks 2 | . . . 1 . 1 . Unlock Access 2 | . . . 1 . 1 . Unauthorized Hacks 15 | . 7 . 3 . 5 . Terminals 14 | . 7 . 3 . 4 . Botnet 14 | . 7 . 3 . 4 . Fabricators 1 | . . . . . 1 . Fabnet 1 | . . . . . 1 . Repair Stations . | . . . . . . . Recycling Units . | . . . . . . . Scanalyzers . | . . . . . . . Garrison Access . | . . . . . . . Data Cores Recovered 1 | . 1 . . . . . Used . | . . . . . . . Hacking Detections 19 | . 7 . 4 3 4 1 Full Trace Events 2 | . . . . 1 1 . Feedback Events . | . . . . . . . Feedback Blocked . | . . . . . . . Robot Schematics Acquired . | . . . . . . . Robots Built . | . . . . . . . Authchips . | . . . . . . . Time . | . . . . . . . Total Robot Build Rating . | . . . . . . . Part Schematics Acquired . | . . . . . . . Parts Built . | . . . . . . . Authchips . | . . . . . . . Time . | . . . . . . . Total Part Build Rating . | . . . . . . . Part Studies Acquired 4 | . . . . . 4 . Parts Repaired . | . . . . . . . Time . | . . . . . . . Parts Recycled . | . . . . . . . Recycled Matter . | . . . . . . . Retrieved Matter . | . . . . . . . Retrieved Components . | . . . . . . . Parts Scanalyzed . | . . . . . . . Part Schematics Acquired . | . . . . . . . Parts Damaged . | . . . . . . . Bothacking | -11 -10 -10 -8 -8 -7 -7 ------------ Run | Yrd Mat Sub Mat Gar Fac Gar Used RIF Installer . | . . . . . . . Robots Hacked . | . . . . . . . Non-combat . | . . . . . . . Combat . | . . . . . . . Robot Hacks Applied . | . . . . . . . Relay Couplers Released 8 | . . . . 3 . 5 Machine Destruction 8 | . . . . 3 . 5 Fabnet Peak Effective % . | . . . . . . . Robots Rewired 6 | . . . . 6 . . Allies Hacked . | . . . . . . . Hacks Repelled . | . . . . . . . Allies | -11 -10 -10 -8 -8 -7 -7 -------- Run | Yrd Mat Sub Mat Gar Fac Gar Total Allies 6 | . . . . 6 . . Largest Group 3 | . . . . 3 2 . Highest-Rated Group 84 | . . . . 84 59 . Highest-Rated Ally 39 | . . . . 39 39 . Initial Warlord ECA Mod 5 | . . . . . 5 5 Total Orders . | . . . . . . . Ally Attacks 41 | . . . . 21 20 . Total Damage 644 | . . . . 446 198 . Kills 6 | . . . . 1 5 . Allies Corrupted 1 | . . . . 1 . . Allies Melted . | . . . . . . . X0-1V1 Amusement Gains 24 | . 14 . . 5 5 . Good Acts 22 | . . 1 2 14 5 . Bad Acts 25 | . . 4 4 8 3 6 Intel | -11 -10 -10 -8 -8 -7 -7 ------- Run | Yrd Mat Sub Mat Gar Fac Gar Active Infowar (turns) 534 | . . . 534 . . . Sensors 534 | . . . 534 . . . Robot Analysis Total 1 | . 1 . . . . . Derelict Logs Recovered . | . . . . . . . Drone Launches . | . . . . . . . Drone Recoveries . | . . . . . . . Exploration | -11 -10 -10 -8 -8 -7 -7 ------------- Run | Yrd Mat Sub Mat Gar Fac Gar Turns Passed 5492 | 4 855 599 933 1415 1282 404 Spaces Moved 2732 | 1 615 367 470 532 630 117 Core . | . . . . . . . Treads 1423 | . . . 195 532 630 66 Legs . | . . . . . . . Wheels 1258 | 1 615 367 275 . . . Hover 51 | . . . . . . 51 Flight . | . . . . . . . Fastest Speed 100 | 100 100 140 110 155 156 172 Average Speed 158 | 100 117 140 154 196 167 221 Slowest Speed 296 | 100 145 140 240 235 240 296 Overloaded Moves . | . . . . . . . Propulsion Burnouts . | . . . . . . . Robots Hopped . | . . . . . . . Potential Cave-ins . | . . . . . . . Cave-ins Triggered . | . . . . . . . Exploration Rate (%) 37 | 2 84 30 42 66 22 18 Regions Visited 6 Branch Regions 1 Pre-discovered Areas . | . . . . . . . Known Exits Taken 2 | . . . 1 . 1 . Unknown Exits Taken 3 | 1 1 1 . . . . Scrap Searched 1 | . . 1 . . . . Spaces Dug 80 | . 5 7 27 15 . 26 Terrain Destroyed 150 | . 18 24 50 32 . 26 Melee . | . . . . . . . Projectile 5 | . . . 5 . . . AOE 145 | . 18 24 45 32 . 26 Terrain Rammed . | . . . . . . . Walls Destroyed . | . . . . . . . Machines Disabled . | . . . . . . . Actions | -11 -10 -10 -8 -8 -7 -7 --------- Run | Yrd Mat Sub Mat Gar Fac Gar Total 3504 | 4 702 415 604 786 813 180 Wait 242 | . 24 12 28 53 124 1 Move 2728 | . 614 366 470 531 630 117 Hop . | . . . . . . . Pick Up 71 | . 21 4 14 22 10 . Fast Attach 18 | . 3 1 5 6 3 . Attach 28 | 1 1 . 9 8 3 6 Detach 1 | . . . 1 . . . Swap 51 | 1 4 7 10 17 7 5 Drop 60 | 2 8 5 9 21 15 . Fire 230 | . 27 19 58 72 21 33 Melee 23 | . . . . 9 . 14 Ram . | . . . . . . . Kick . | . . . . . . . Crush . | . . . . . . . Escape Stasis 6 | . . . . 2 . 4 Rewire 45 | . . . . 45 . . Trap 1 | . . 1 . . . . Miscellaneous . | . . . . . . . Route ------- -11/Scrapyard -10/Materials (discovered 5 exits: [*Mat x3] / [*Min] / *Sub) -10/Subcaves (discovered 3 exits: *Mat x2 / [*Rec]) -8/Materials -8/Garrison (discovered 3 exits: *Fac x3) -7/Factory (discovered 5 exits: Fac x4 / Gar) -7/Garrison History --------- Turn | Location | Event 5 | -11/Scrapyard | Discovered new exit (range 0) 5 | -11/Scrapyard | Entered Materials 71 | -10/Materials | Central database locked down 178 | -10/Materials | Discovered new exit (range 15) 219 | -10/Materials | Discovered new exit (range 16) 291 | -10/Materials | Discovered new exit (range 8) 307 | -10/Materials | Build established: Mutant 690 | -10/Materials | Discovered new exit (range 10) 844 | -10/Materials | Discovered new exit (range 10) 856 | -10/Materials | Prayed at D.C.S.S. Altar Unit 860 | -10/Materials | Entered Subcaves 974 | -10/Subcaves | Forcibly received Sfc. Transmogifier from X0-1V1 1008 | -10/Subcaves | System corruption reached 10% 1180 | -10/Subcaves | Discovered new exit (range 15) 1334 | -10/Subcaves | Visited 4L-MR0's lab 1392 | -10/Subcaves | Discovered new exit (range 8) 1433 | -10/Subcaves | Visited Clippyterm 1437 | -10/Subcaves | Learned Factory fabricator intel 1437 | -10/Subcaves | Learned Research security intel 1459 | -10/Subcaves | Discovered new exit (range 14) 1459 | -10/Subcaves | Entered Materials 1459 | -8/Materials | Evolved 4 slots: Propulsion x1, Utility x3 1646 | -8/Materials | X0-1V1 added 0b10 threat records associated with you (considerable) 1759 | -8/Materials | Unknown Launcher reconfigured into Item Mimic 2035 | -8/Materials | Lost 3 parts (1p2n) 2061 | -8/Materials | Core integrity permanently improved by X0-1V1 (+250) 2099 | -8/Materials | EX resistance permanently improved by X0-1V1 (+15%; -150 max core) 2392 | -8/Materials | Identified exit to Garrison 2392 | -8/Materials | Entered Garrison 2414 | -8/Garrison | Sight range permanently improved by X0-1V1 (+1%; -150 max core) 2457 | -8/Garrison | X0-1V1 destroyed Phase Generator 2457 | -8/Garrison | Phase Generator disabled 2711 | -8/Garrison | Triggered checkpoint 2804 | -8/Garrison | Build established: Scavenger-Mutant 2848 | -8/Garrison | Triggered checkpoint 2850 | -8/Garrison | Spotted B-75 Beast 2884 | -8/Garrison | Destroyed B-75 Beast 2907 | -8/Garrison | Lost 3 allies 2931 | -8/Garrison | Lost 8 parts (2p4n1u1w) 2946 | -8/Garrison | Discovered new exit (range 18) 3084 | -8/Garrison | System corruption reached 10% 3105 | -8/Garrison | Garrison Relay disabled 3176 | -8/Garrison | Build established: Mutant 3408 | -8/Garrison | Triggered checkpoint 3442 | -8/Garrison | Triggered checkpoint 3536 | -8/Garrison | Triggered checkpoint 3540 | -8/Garrison | Core integrity fell below 50% 3687 | -8/Garrison | Identified exit to Factory 3687 | -8/Garrison | X0-1V1 revealed exit location to -7/Factory 3694 | -8/Garrison | X0-1V1 rewrote XT-3BD(b) IFF filter 3734 | -8/Garrison | Discovered exit to Factory (range 11) 3775 | -8/Garrison | Core integrity restored by X0-1V1 (+145) 3780 | -8/Garrison | X0-1V1 activates XOMVISION 3807 | -8/Garrison | Entered Factory 3807 | -7/Factory | Accompanied by 2 allies 3807 | -7/Factory | Evolved 2 slots: Propulsion x1, Weapon x1 3808 | -7/Factory | Loaded intel: 6 fabricator locations 3917 | -7/Factory | Central database locked down 4043 | -7/Factory | X0-1V1 enhanced Transport squad support 4091 | -7/Factory | X0-1V1 foreshadows a heat wave 4111 | -7/Factory | Build established: Tank 4264 | -7/Factory | Ambient heat levels rising (+10) 4487 | -7/Factory | Ambient heat levels rising (+10) 4721 | -7/Factory | Ambient heat levels falling (-10) 4796 | -7/Factory | Identified exit to Factory 4820 | -7/Factory | X0-1V1 sent you into danger 4928 | -7/Factory | X0-1V1 added 0b10 threat records associated with you (major) 4939 | -7/Factory | Ambient heat levels falling (-10) 5007 | -7/Factory | Search patrols dispatched 5089 | -7/Factory | Identified exit to Garrison 5089 | -7/Factory | Entered Garrison 5115 | -7/Garrison | Triggered checkpoint 5144 | -7/Garrison | System corruption reached 10% 5164 | -7/Garrison | Garrison Relay disabled 5248 | -7/Garrison | X0-1V1 sent hostile S-27 Virus (x5) 5290 | -7/Garrison | X0-1V1 upgraded hostiles (x3) 5313 | -7/Garrison | Build established: Mutant 5358 | -7/Garrison | Lost 4 parts (1n2u1w) 5443 | -7/Garrison | Triggered checkpoint 5446 | -7/Garrison | Triggered checkpoint 5493 | -7/Garrison | Self-destructed Last Messages --------------- Trooper. 05447_ Slug penetrates G-47 Trooper. 05448_ Critical hit (Burn: +37). 05451_ S-27 Virus destroyed. 05458_ Hrd. Medium Armor Plating destroyed. 05460_ K16YC6U#WD%JQN ODWOGDTN6J7D 05466_ G-47 Trooper destroyed. 05466_ Switching to secondary target: G-47 Trooper. 05466_ Slug penetrates Reinforced Barrier. 05469_ Slug penetrates G-47 Trooper. 05475_ System corrupted: Gauss Rifle jammed. 05475_ G-47 Trooper destroyed. 05477_ Acquired 48 matter. 05479_ ,A%<#9A#FH O>O6B3G= G7 05481_ Acquired 57 matter. 05483_ Gravmag System destroyed. 05485_ Adv. Heat Sink destroyed. 05491_ Gauss Rifle destroyed. 05492_ Gravmag System destroyed. Map ----- +----------------------------------------------------+ | ?????????????????????# #?????????????????# #???? | | ?????????????????????# #?????????????????# #???? | | ?????????????????????# #?????????????????# #???? | | ?????????????????????#+"######????????+???# #???? | | ?????????????????????# ???????????? #???? | | ?????????????????????# ???????????? #???? | | ?????????????????????# ######????????????###????? | | ?????????????????????# #????????????????????????? | | ?????????????????????# #????????????????????????? | | ?????????????????????# #????????????????????????? | | ?????????????????????# #????????????????????????? | | ?????????????????????# #????????????????????????? | | ?????????????????????# #????????????????????????? | | ??????????????????""# ##???????????????????????? | | ????????????????? %% #???????????????????????? | | ????????????????? #???????????????????????? | | ????????????????? #???????????????????????? | | ?????????????????? # #???????????????????????? | | ?????????????????? ## ###?????????????????????? | | ?????????????????? !#?????????????????????? | | ?????????????????? s %*=#?????????????????????? | | ?????????????????? * #?????????????????????? | | ?????????????????? s =*#?????????????????????? | | ????????????????????##ss ###?????????????????????? | | ?????????????????????# #####???????????????????? | | ?????????????????? @ ???+?????????????? | | ??????????+??????? ???+?????????????? | | ??????????????????? #######?????????????????? | | ??????????????????? #### #???????????????????????? | | ???????????????????????# ????????????????????????? | | ??????????????????????? ????????????????????????? | | ?+?????????+???????????"?????????????????????????? | | ?????????????????????????????????????????????????? | | ?????????????????????????????????????????????????? | | ?????????????????????????????????????????????????? | | ??????+??????????????????????????????????????????? | | ?????????????????????????????????????????????????? | | ?????????????????????????????????????????????????? | | ??????+??????????????????????????????????????????? | | ?????????????????????????????????????????????????? | | ?????????????????????????????????????????????????? | | ?????????????????????????????????????????????????? | | ?????????????????????????????????????????????????? | | ?????????????????????????????????????????????????? | | ?????????????????????????????????????????????????? | | ?????????????????????????????????????????????????? | | ?????????????????????????????????????????????????? | | ?????????????????????????????????????????????????? | | ?????????????????????????????????????????????????? | | ???????+???+?????????????????????????????????????? | +----------------------------------------------------+ Best States ------------- Heat Dissipation 61 Energy Generation 18 Energy Capacity 1400 Matter Stores 948 Matter Capacity 1000 Sight Range 21 Robot Scan Range 15 Terrain Scan Density 10 Armor Coverage 225 Resistance: EX 15 Propulsion Shielding 33 Weapon Cycling 15 Evasion (%) 40 Recoil Reduction 4 Offensive Hacking 10 Item Schematics ----------------- None Robot Schematics ------------------ None Fabricated ------------ Nothing Repaired ---------- Nothing Studied --------- Gatling Laser | -7/Factory | Hacked Proton Missile Launcher | -7/Factory | Hacked Missile Launcher | -7/Factory | Hacked Adv. Treads | -7/Factory | Hacked Alien Tech Used ----------------- None Achievements -------------- None Challenges ------------ None Game ------ Seed SubdwellerGammaAssimilator Manual? 0 Play Time 00:40:35 Cumulative 203.3 hours Start 2026.06.27 @ 20:58:15 End 2026.06.27 @ 22:09:22 Sessions 1 Manual Loads 0 Difficulty Rogue Special Mode None Game No. 166 Rogue 166 Adventurer 0 Explorer 0 Win Type - Total 3 Types 3/0/0/0/0/0/0/0/0/0 Lore% 77 Gallery% 66 Achievement% 58 Wizard Run 0 Options --------- Layout 2 ASCII 0 Keyboard 0 Movement Mouse Keybinds 0 Fullscreen 1 Font 24/Smallcaps Map View 50x44 Zoom Use 0% Tactical HUD 1 Map Filters NONE Filters NONE Steam 1 RUN: d4ac4566-b4c6-421a-9d7f-b99eb270e22f